Cogmind - Beta 17 @@@ ROGUE MODE // 2026.07.30 @ 17:58:00 Player: Suffixing Result: Destroyed by G-50 Soldier with Heavy Laser Performance ------------- Evolutions (1) 500 Regions Visited (6) 1200 Robots Destroyed (61) 305 Value Destroyed (1244) 1244 Prototype IDs (28) 560 Alien Tech Used (0) 0 Bonus (321) 321 TOTAL SCORE: 4130 Bonus ------- Follower Combat Kills 21 Aligned with FarCom 300 Cogmind --------- Core Integrity 0/400 Matter 234/300 Energy 16/100 System Corruption 1% Temperature Hot (239) Movement Treading (240) Ox2 Location -8/Mines Parts ------- > --- POWER (1) -------- (None) > --- PROPULSION (2) --- Light Treads Light Treads > --- UTILITY (4) ------ Cooling System Huge Storage Unit > --- WEAPON (2) ------- Heavy Particle Cannon Heavy Particle Cannon > --- INVENTORY (25) --- Heavy Ion Engine Heavy Ion Engine Heavy Ion Engine Light Treads Light Treads Light Treads Wheel Improved Flight Unit Improved Flight Unit Improved Heat Sink Large Storage Unit Particle Charger Hacking Suite Hacking Suite Hacking Suite Hacking Suite Advanced Beam Cannon Heavy Particle Cannon Heavy Particle Cannon YOLO Cannon Rocket Launcher Deploy-a-Sentry Deploy-a-Sentry Deploy-a-Sentry Peak State ------------ > --- POWER ------------ Heavy Ion Engine > --- PROPULSION ------- Light Treads Light Treads > --- UTILITY ---------- Cooling System Huge Storage Unit Improved Light Armor Plating Improved Light Armor Plating > --- WEAPON ----------- Heavy Particle Cannon Heavy Particle Cannon > --- INVENTORY -------- Heavy Ion Engine Heavy Ion Engine Heavy Ion Engine Light Treads Light Treads Light Treads Wheel Improved Flight Unit Improved Flight Unit Improved Heat Sink Large Storage Unit Particle Charger Hacking Suite Hacking Suite Hacking Suite Hacking Suite Advanced Beam Cannon Heavy Particle Cannon Heavy Particle Cannon YOLO Cannon Rocket Launcher Deploy-a-Sentry Deploy-a-Sentry Deploy-a-Sentry [Rating: 29] Favorites ----------- Power Heavy Ion Engine Engine Heavy Ion Engine Power Core Light Nuclear Core Propulsion Improved Treads Treads Improved Treads Leg Aluminum Leg Utility Improved Light Armor Plating Device Improved Heat Sink Storage Huge Storage Unit Protection Improved Light Armor Plating Weapon Beam Cannon Energy Gun EM Pulse Gun Energy Cannon Beam Cannon Ballistic Gun Improved Assault Rifle Launcher Rocket Launcher Build | -11 -10 -10 -9 -9 -9 -8 ------- Run | Yrd Mat Min Mat Min Exi Min Slots Evolved 2 | . . . 2 . . . Power . | . . . . . . . Propulsion . | . . . . . . . Utility 2 | . . . 2 . . . Weapon . | . . . . . . . Parts Attached 37 | 3 8 1 21 3 1 . Power 4 | . 1 1 2 . . . Engine 2 | . 1 . 1 . . . Core 2 | . . 1 1 . . . Reactor . | . . . . . . . Propulsion 9 | 2 2 . 4 1 . . Treads 9 | 2 2 . 4 1 . . Leg . | . . . . . . . Wheel . | . . . . . . . Hover . | . . . . . . . Flight . | . . . . . . . Utility 13 | . 3 . 8 2 . . Device 5 | . 1 . 3 1 . . Storage 2 | . 2 . . . . . Processor . | . . . . . . . Hackware . | . . . . . . . Protection 6 | . . . 5 1 . . Artifact . | . . . . . . . Weapon 11 | 1 2 . 7 . 1 . Energy Gun 2 | 1 . . 1 . . . Energy Cannon 6 | . 2 . 3 . 1 . Ballistic Gun 2 | . . . 2 . . . Ballistic Cannon . | . . . . . . . Launcher 1 | . . . 1 . . . Special Weapon . | . . . . . . . Impact Weapon . | . . . . . . . Slashing Weapon . | . . . . . . . Piercing Weapon . | . . . . . . . Special Melee Weapon . | . . . . . . . Unidentified Prototypes 5 | . . . 5 . . . Corrupted Parts 1 | . 1 . . . . . System Corruption 1 | . 1 . . . . . Parts Lost 17 | . . 1 8 5 . 3 Power 3 | . . 1 1 . . 1 Propulsion 6 | . . . 4 2 . . Utility 7 | . . . 2 3 . 2 Weapon 1 | . . . 1 . . . Highest Loss Streak 5 | . . 1 2 5 . 3 To Critical Strikes . | . . . . . . . Average Backups 17 | 6 10 14 20 22 20 21 Power 2 | 1 1 2 2 3 3 3 Propulsion 7 | 4 6 8 7 7 6 6 Utility 4 | . 1 2 5 8 7 7 Weapon 3 | 1 . 1 4 4 4 5 Tool/Special . | . . . . . . . Unused Backups 31 | . 3 . 13 . . 15 Power 7 | . . . 4 . . 3 Propulsion 7 | . . . 2 . . 5 Utility 7 | . 2 . . . . 5 Weapon 10 | . 1 . 7 . . 2 Tool/Special . | . . . . . . . Average Slot Usage (%) 97 | . 93 99 96 99 100 88 Engine 8 | . 13 11 3 11 11 8 Core 3 | . . 2 7 . . . Treads 23 | . 28 28 21 21 22 22 Device 11 | . 7 14 11 11 11 11 Storage 12 | . 14 14 11 11 11 11 Protection 12 | . . . 18 22 22 13 Energy Gun 2 | . 11 . . . . . Energy Cannon 15 | . 15 28 10 16 21 22 Ballistic Gun 5 | . . . 11 . . . Peak Build Rating 29 | 6 12 15 28 25 29 29 Average Rating 19 | 6 10 13 23 24 26 25 On Entrance 16 | 6 6 12 15 25 24 29 Avg Prop Armor Cover (%) . | . . . . . . . Naked Turns . | . . . . . . . Heaviest Build 110 | 14 92 92 110 108 108 . Greatest Support 46 | 40 46 46 46 40 40 . Greatest Overweight (x) 4 | . 2 1 4 2 2 . Average Overweight (x) 1 | . . 1 1 2 2 . Largest Inventory Capacity 25 | 8 25 25 25 25 25 25 Average Capacity 24 | 8 23 25 25 25 25 25 Most Carried 25 | 6 14 17 25 25 25 25 Average Carried 18 | 4 10 15 20 22 22 25 Final Capacity 25 | 8 25 25 25 25 25 25 Final Carried 25 | 2 14 17 25 20 25 25 Class Distribution -------------------- 100% | Mutant Dominant Class ---------------- Mutant | -10/Materials Mutant | -10/Mines Mutant | -9/Materials Mutant | -9/Mines Mutant | -9/Exiles Mutant | -8/Mines Resources | -11 -10 -10 -9 -9 -9 -8 ----------- Run | Yrd Mat Min Mat Min Exi Min Matter Collected 951 | 193 120 24 517 97 . . Remotely . | . . . . . . . Salvage Created 2112 | . 483 189 1171 188 . 81 Parts 119 | . 28 12 64 11 . 4 Haulers Intercepted 8 | . 2 . 6 . . . Recyclers Shooed 4 | . . . 4 . . . Parts Field Recycled . | . . . . . . . Retrieved Matter . | . . . . . . . Parts Self-Destructed . | . . . . . . . Prevented . | . . . . . . . Parts Restored . | . . . . . . . Kills | -11 -10 -10 -9 -9 -9 -8 ------- Run | Yrd Mat Min Mat Min Exi Min Combat Hostiles Destroyed 56 | . 7 7 22 18 . 2 Guns 8 | . 1 . 7 . . . Cannons 30 | . 6 7 11 4 . 2 AOE 16 | . . . 3 13 . . Classes Destroyed 10 | . 7 . 1 2 . . Worker 1 | . 1 . . . . . Builder 5 | . 1 1 3 . . . Hauler 8 | . 2 . 6 . . . Recycler 3 | . 1 . 1 1 . . Swarmer 19 | . 3 6 6 4 . . Grunt 18 | . 3 2 11 . . 2 Sentry 5 | . . . 5 . . . Demolisher 1 | . . . . 1 . . Subdweller 1 | . 1 . . . . . Assembled 13 | . . . . 13 . . Best Kill Streak 13 | . 5 3 6 13 . 2 Combat Bots Only 13 | . 4 3 5 13 . 2 Max Kills in Single Turn 3 | . 2 1 3 3 . 1 Gunslinging . | . . . . . . . Exploded 3 | . . . 2 3 . . Melee . | . . . . . . . Uniques/NPCs Destroyed . | . . . . . . . Combat | -11 -10 -10 -9 -9 -9 -8 -------- Run | Yrd Mat Min Mat Min Exi Min Hostile Shots Fired 302 | . 39 36 142 58 . 27 Missed 65 | . 10 8 37 8 . 2 Hits 237 | . 29 28 105 50 . 25 Projectile 237 | . 29 28 105 50 . 25 AOE 17 | . . . . 17 . . Critical Strikes 6 | . . . 4 . . 2 Damage Taken 3463 | . 353 230 1366 1083 . 431 Core 516 | . 70 40 190 178 . 38 Absorbed by Shields . | . . . . . . . Core Remaining (%) 78 | 100 . 56 . . . . Volleys Fired 168 | . 27 12 90 27 . 12 Largest 2 | . 2 2 2 2 . 2 Hottest 150 | . 120 120 150 150 . 150 Shots Fired 305 | . 54 24 165 45 1 16 Gun 108 | . 30 . 78 . . . Cannon 184 | . 24 24 83 36 1 16 Launcher 13 | . . . 4 9 . . Special . | . . . . . . . Kinetic 78 | . . . 78 . . . Thermal 184 | . 24 24 83 36 1 16 Explosive 13 | . . . 4 9 . . Electromagnetic 30 | . 30 . . . . . Robot Hit Streak 14 | . 14 4 14 6 . 13 Robot Miss Streak 6 | . 6 5 3 6 . 1 Penetration Max . | . . . . . . . Secondary Targets . | . . . . . . . Shots Hit Robots 184 | . 31 11 108 21 . 13 Core Hits 102 | . 15 9 45 29 . 4 Critical Kills 2 | . . . 1 1 . . Critical Parts Destroyed . | . . . . . . . Critical Strikes 2 | . . . 1 1 . . Meltdown 2 | . . . 1 1 . . Melee Attacks . | . . . . . . . Impact . | . . . . . . . Slashing . | . . . . . . . Piercing . | . . . . . . . Sneak Attacks . | . . . . . . . Combat Hostiles . | . . . . . . . Follow-up Attacks . | . . . . . . . Damage Inflicted 5077 | . 601 280 2522 1349 . 325 Guns 1194 | . 283 . 911 . . . Cannons 2365 | . 178 263 1124 475 . 325 Explosions 1406 | . 106 . 451 849 . . Melee . | . . . . . . . Ramming 112 | . 34 17 36 25 . . Kinetic 911 | . . . 911 . . . Thermal 2471 | . 284 263 1124 475 . 325 Explosive 1300 | . . . 451 849 . . Electromagnetic 283 | . 283 . . . . . Impact . | . . . . . . . Slashing . | . . . . . . . Piercing . | . . . . . . . Highest Corruption 1 | . 1 1 1 1 1 1 Average Corruption 1 | . 1 1 1 1 1 1 Corruption Purged . | . . . . . . . Corruption Blocked . | . . . . . . . Effects 28 | . 1 6 10 5 6 . Message Errors 2 | . . 1 . . 1 . Matter Fused 8 | . . 2 4 1 1 . Heat Flow Errors 5 | . 1 . 3 . 1 . Energy Discharges 1 | . . . 1 . . . Parts Fused 1 | . . . 1 . . . Data Loss (minor) 7 | . . 1 1 3 2 . Misfires 2 | . . . . 1 1 . Alerts 2 | . . 2 . . . . Overload Shots . | . . . . . . . Overflow Damage 79 | . 10 16 15 38 . . Projectiles 52 | . . 16 3 33 . . Explosions 27 | . 10 . 12 5 . . Melee . | . . . . . . . Knockbacks . | . . . . . . . Impact . | . . . . . . . Kinetic . | . . . . . . . Secondary . | . . . . . . . Self-Inflicted Damage 136 | . 32 . 38 66 . . Shots 5 | . 2 . 1 2 . . Rammed 16 | . 4 2 8 2 . . Targets Rammed 17 | . 4 2 9 2 . . Kicked . | . . . . . . . Crushed 1 | . . . 1 . . . Highest Temperature 324 | . 257 108 324 150 163 294 Average Temperature 95 | . 59 42 125 48 83 216 Received Heat Transfer 994 | . 87 . 606 40 . 261 Effects 5 | . 1 . 1 . . 3 Energy Bleed 2 | . 1 . . . . 1 Interference 3 | . . . 1 . . 2 Siege Activations . | . . . . . . . Martial Activations . | . . . . . . . Shielding Activations . | . . . . . . . Robots Disrupted . | . . . . . . . Combat Hostiles . | . . . . . . . Robots Corrupted . | . . . . . . . Combat Hostiles . | . . . . . . . Parts Fried . | . . . . . . . Impact Corruptions . | . . . . . . . Robots Melted 2 | . . . 1 1 . . Combat Hostiles 2 | . . . 1 1 . . Parts Melted 11 | . 2 1 6 1 . 1 Heat Transferred 4331 | . 520 555 2072 703 . 481 Parts Sabotaged . | . . . . . . . Parts Stolen . | . . . . . . . Parts Stripped . | . . . . . . . Power Chain Reactions 3 | . 3 . . . . . Alert | -11 -10 -10 -9 -9 -9 -8 ------- Run | Yrd Mat Min Mat Min Exi Min Maximum Alert Level . | . . . . . . . Low Security (%) 100 | 100 100 100 100 100 . 100 Level 1 . | . . . . . . . Level 2 . | . . . . . . . Level 3 . | . . . . . . . Level 4 . | . . . . . . . Level 5 . | . . . . . . . High Security . | . . . . . . . Max Security . | . . . . . . . Peak Influence 149 | . 83 96 149 111 . 21 Initial 48 | . . 7 24 48 . . Average 54 | . 14 21 87 36 . 7 Influence Increases 1439 | . 220 247 695 234 . 43 Destroy 0b10 Robot/C 900 | . 120 200 440 100 . 40 Destroy 0b10 Robot/NC 85 | . 25 5 50 5 . . Destroy Leader 196 | . 34 20 122 20 . . Allied During Kill 7 | . . 7 . . . . Successful Hack 11 | . . . 11 . . . Disable Machine 30 | . 15 . . 15 . . Destroy Structure 90 | . 11 . 27 49 . 3 Partial Spotted 45 | . . . 45 . . . Lose Combat Pursuer 75 | . 15 15 . 45 . . Influence Decreases 1436 | . 199 204 634 359 . 40 Entered New Map 131 | . . 14 40 77 . . Time Decay 1154 | . 199 160 553 232 . 10 Lost Part 131 | . . 10 41 50 . 30 Lost Ally 20 | . . 20 . . . . Squads Dispatched 3 | . 2 . 1 . . . Investigation 3 | . 2 . 1 . . . Extermination . | . . . . . . . Reinforcement . | . . . . . . . Assault . | . . . . . . . Garrison . | . . . . . . . Intercept . | . . . . . . . Searches Triggered . | . . . . . . . Construction Impeded . | . . . . . . . Haulers Reinforced . | . . . . . . . Active Scanning Responses . | . . . . . . . Cargo Convoy Interrupts . | . . . . . . . Stealth | -11 -10 -10 -9 -9 -9 -8 --------- Run | Yrd Mat Min Mat Min Exi Min Distress Signals 8 | . 3 . 5 . . . Communications Jammed . | . . . . . . . Distress Signals . | . . . . . . . Times Spotted 91 | . 11 10 41 26 . 3 Peak Tracking Total 7 | . 3 3 6 7 . 3 Tactical Retreats 3 | . 1 1 . 1 . . Traps | -11 -10 -10 -9 -9 -9 -8 ------- Run | Yrd Mat Min Mat Min Exi Min Traps Triggered 2 | . 2 . . . . . Indirectly . | . . . . . . . Trap Hack Attempts . | . . . . . . . Triggered . | . . . . . . . Disarmed 1 | . . . 1 . . . Reprogrammed . | . . . . . . . Reused . | . . . . . . . Traps Extracted . | . . . . . . . Installed . | . . . . . . . Triggered . | . . . . . . . Machines | -11 -10 -10 -9 -9 -9 -8 ---------- Run | Yrd Mat Min Mat Min Exi Min Machines Disabled 2 | . 1 . . 1 . . Max in Single Turn 1 | . 1 . . 1 . . Machines Repaired . | . . . . . . . Machines Dismantled . | . . . . . . . Machines Sabotaged . | . . . . . . . Overloaded Fab Kills . | . . . . . . . Hacking | -11 -10 -10 -9 -9 -9 -8 --------- Run | Yrd Mat Min Mat Min Exi Min Machines Accessed 11 | . 4 . 5 . 2 . Terminals 8 | . 4 . 4 . . . Fabricators . | . . . . . . . Repair Stations . | . . . . . . . Recycling Units . | . . . . . . . Scanalyzers 1 | . . . 1 . . . Garrison Access . | . . . . . . . Total Hacks 43 | . 6 . 13 . 24 . Successful 29 | . 1 . 4 . 24 . Failed 14 | . 5 . 9 . . . Catastrophic 4 | . 2 . 2 . . . Database Lockouts . | . . . . . . . Manual 11 | . 6 . 4 . 1 . Terminals 17 | . 6 . 11 . . . Fabricators . | . . . . . . . Repair Stations . | . . . . . . . Recycling Units . | . . . . . . . Scanalyzers 2 | . . . 2 . . . Garrison Access . | . . . . . . . Terminal Hacks 27 | . . . 3 . 24 . Record 23 | . . . . . 23 . Disarm Traps 1 | . . . 1 . . . Transport Status 1 | . . . 1 . . . Hauler Manifests 1 | . . . 1 . . . Proto ID Catalog 1 | . . . . . 1 . Fabricator Hacks . | . . . . . . . Repair Station Hacks . | . . . . . . . Recycling Unit Hacks . | . . . . . . . Scanalyzer 1 | . . . 1 . . . Retrieve Study 1 | . . . 1 . . . Garrison Access Hacks . | . . . . . . . Unauthorized Hacks 1 | . 1 . . . . . Terminals 1 | . 1 . . . . . Operators 1 | . 1 . . . . . Fabricators . | . . . . . . . Repair Stations . | . . . . . . . Recycling Units . | . . . . . . . Scanalyzers . | . . . . . . . Garrison Access . | . . . . . . . Data Cores Recovered . | . . . . . . . Used . | . . . . . . . Hacking Detections 8 | . 4 . 4 . . . Full Trace Events 1 | . . . 1 . . . Feedback Events 1 | . . . 1 . . . Corruption 1 | . . . 1 . . . Feedback Blocked . | . . . . . . . Robot Schematics Acquired . | . . . . . . . Robots Built . | . . . . . . . Authchips . | . . . . . . . Time . | . . . . . . . Total Robot Build Rating . | . . . . . . . Part Schematics Acquired . | . . . . . . . Parts Built . | . . . . . . . Authchips . | . . . . . . . Time . | . . . . . . . Total Part Build Rating . | . . . . . . . Part Studies Acquired 1 | . . . 1 . . . Parts Repaired . | . . . . . . . Time . | . . . . . . . Parts Recycled . | . . . . . . . Recycled Matter . | . . . . . . . Retrieved Matter . | . . . . . . . Retrieved Components . | . . . . . . . Parts Scanalyzed . | . . . . . . . Part Schematics Acquired . | . . . . . . . Parts Damaged . | . . . . . . . Bothacking | -11 -10 -10 -9 -9 -9 -8 ------------ Run | Yrd Mat Min Mat Min Exi Min Used RIF Installer . | . . . . . . . Robots Hacked . | . . . . . . . Non-combat . | . . . . . . . Combat . | . . . . . . . Robot Hacks Applied . | . . . . . . . Relay Couplers Released . | . . . . . . . Fabnet Peak Effective % . | . . . . . . . Robots Rewired . | . . . . . . . Allies Hacked . | . . . . . . . Hacks Repelled . | . . . . . . . Allies | -11 -10 -10 -9 -9 -9 -8 -------- Run | Yrd Mat Min Mat Min Exi Min Total Allies 3 | . . 2 . 1 . . Largest Group 2 | . . 2 . 1 1 . Highest-Rated Group 32 | . . 32 . 31 31 . Highest-Rated Ally 31 | . . 16 . 31 31 . Total Orders . | . . . . . . . Ally Attacks 13 | . . 13 . . . . Total Damage 112 | . . 112 . . . . Kills 3 | . . 3 . . . . Allies Corrupted . | . . . . . . . Allies Melted . | . . . . . . . Intel | -11 -10 -10 -9 -9 -9 -8 ------- Run | Yrd Mat Min Mat Min Exi Min Active Infowar (turns) . | . . . . . . . Robot Analysis Total . | . . . . . . . Derelict Logs Recovered 3 | . . 1 . 2 . . Drone Launches . | . . . . . . . Drone Recoveries . | . . . . . . . Exploration | -11 -10 -10 -9 -9 -9 -8 ------------- Run | Yrd Mat Min Mat Min Exi Min Turns Passed 5542 | 7 1120 759 2478 622 530 26 Spaces Moved 1834 | 1 407 298 687 224 217 . Core . | . . . . . . . Treads 1834 | 1 407 298 687 224 217 . Legs . | . . . . . . . Wheels . | . . . . . . . Hover . | . . . . . . . Flight . | . . . . . . . Fastest Speed 160 | 160 160 240 240 240 240 . Average Speed 263 | 160 232 240 306 240 240 . Slowest Speed 480 | 160 320 240 480 240 240 . Overloaded Moves . | . . . . . . . Propulsion Burnouts . | . . . . . . . Robots Hopped . | . . . . . . . Potential Cave-ins . | . . . . . . . Cave-ins Triggered . | . . . . . . . Exploration Rate (%) 45 | 2 65 48 78 64 62 2 Regions Visited 6 Branch Regions 4 Pre-discovered Areas 1 | . . . . . 1 . Known Exits Taken . | . . . . . . . Unknown Exits Taken 6 | 1 1 1 1 1 1 . Scrap Searched 2 | . . 1 . 1 . . Spaces Dug . | . . . . . . . Terrain Destroyed 133 | . 8 . 30 91 1 3 Melee . | . . . . . . . Projectile 25 | . . . 5 16 1 3 AOE 108 | . 8 . 25 75 . . Terrain Rammed . | . . . . . . . Walls Destroyed . | . . . . . . . Machines Disabled . | . . . . . . . Actions | -11 -10 -10 -9 -9 -9 -8 --------- Run | Yrd Mat Min Mat Min Exi Min Total 2225 | 7 523 316 878 262 227 12 Wait 71 | . 54 . 7 4 6 . Move 1828 | . 406 297 686 223 216 . Hop . | . . . . . . . Pick Up 66 | . 18 4 40 . 4 . Fast Attach . | . . . . . . . Attach 24 | . 6 1 12 5 . . Detach 1 | . 1 . . . . . Swap 21 | 3 3 . 13 1 1 . Drop 29 | 4 4 . 21 . . . Fire 168 | . 27 12 90 27 . 12 Melee . | . . . . . . . Ram . | . . . . . . . Kick . | . . . . . . . Crush 17 | . 4 2 9 2 . . Escape Stasis . | . . . . . . . Rewire . | . . . . . . . Trap . | . . . . . . . Miscellaneous . | . . . . . . . Route ------- -11/Scrapyard -10/Materials (discovered 4 exits: *Mat / [*Min x2] / [*Sub]) -10/Mines (discovered 2 exits: *Mat / [*Sub]) -9/Materials (discovered 3 exits: [*Mat] / [*Min x2]) -9/Mines (discovered 4 exits: [*Mat x2] / *Exi / [*Zio]) -9/Exiles -8/Mines History --------- Turn | Location | Event 8 | -11/Scrapyard | Discovered new exit (range 0) 8 | -11/Scrapyard | Entered Materials 185 | -10/Materials | Discovered new exit (range 10) 293 | -10/Materials | Discovered new exit (range 11) 314 | -10/Materials | Build established: Mutant 508 | -10/Materials | Derelicts attacked the area 604 | -10/Materials | Discovered new exit (range 5) 869 | -10/Materials | Discovered new exit (range 11) 1128 | -10/Materials | Entered Mines 1159 | -10/Mines | Met a Derelict bent on vengeance 1342 | -10/Mines | Assisted by bots powering up and referring to "LRC-V3" 1387 | -10/Mines | Learned Materials garrison access intel 1553 | -10/Mines | Discovered new exit (range 6) 1773 | -10/Mines | Discovered new exit (range 14) 1799 | -10/Mines | Received a Rocket Launcher from a helpful Derelict 1887 | -10/Mines | Entered Materials 1887 | -9/Materials | Evolved 2 slots: Utility x2 2621 | -9/Materials | Discovered new exit (range 14) 3346 | -9/Materials | Discovered new exit (range 8) 3877 | -9/Materials | Discovered new exit (range 11) 4365 | -9/Materials | Entered Mines 4387 | -9/Mines | Discovered new exit (range 13) 4449 | -9/Mines | Core integrity fell below 50% 4480 | -9/Mines | Learned Materials emergency access door positions 4625 | -9/Mines | Assembled infested the area 4630 | -9/Mines | Assisted by a Guerilla fighting off Assembled 4669 | -9/Mines | Core integrity fell below 20% 4739 | -9/Mines | Lost 5 parts (2n3u) 4740 | -9/Mines | Destroyed 13 combat bots 4751 | -9/Mines | A weapon hastily lodged in a ceiling crevice suddenly fell to the ground 4850 | -9/Mines | Discovered new exit (range 9) 4885 | -9/Mines | A Derelict revealed a hidden shortcut to a safe place 4918 | -9/Mines | Received a Mining Laser from a helpful Derelict 4977 | -9/Mines | Deemed a non-threat by the Exiles lab entrance 4977 | -9/Mines | Discovered new exit (range 5) 4987 | -9/Mines | Entered Exiles 4987 | -9/Exiles | Accompanied by 1 ally 5053 | -9/Exiles | Met 8R-AWN 5096 | -9/Exiles | Met EX-HEX 5165 | -9/Exiles | Met EX-BIN 5199 | -9/Exiles | Aligned with FarCom system 5201 | -9/Exiles | Given EX-Vault access code 5259 | -9/Exiles | Opened EX-Vault 5269 | -9/Exiles | Found YOLO Cannon 5272 | -9/Exiles | Found Deploy-a-Sentry 5275 | -9/Exiles | Found Deploy-a-Sentry 5279 | -9/Exiles | Found Deploy-a-Sentry 5325 | -9/Exiles | Warned to stay clear of 0b10 Research branches 5393 | -9/Exiles | Met EX-DEC 5424 | -9/Exiles | Learned location of Zion (-7) 5496 | -9/Exiles | Discovered new exit (range 10) 5517 | -9/Exiles | Stole two prototypes: YOLO Cannon, Deploy-a-Sentry 5517 | -9/Exiles | Entered Mines 5543 | -8/Mines | Destroyed by G-50 Soldier with Heavy Laser Last Messages --------------- again?! I'm not erasing this message until I get an answer. --BIN 05436_ System corrupted: Component data lost. 05496_ EXIT=FOUND LOCATION=UNKNOWN GOAL=ESCAPE 05517_ Receiving FarCom transmissions... 05521_ Critical hit (Burn: +37). 05523_ Destroyed Lgt. Nuclear Core. 05526_ Imp. Heat Sink melted. 05526_ G-47 Trooper destroyed. 05529_ Overheating: System interference. 05529_ Hvy. Particle Cannon temporarily disabled. 05529_ Imp. Light Armor Plating destroyed. 05533_ G-47 Trooper destroyed. 05533_ Hvy. Ion Engine destroyed. 05536_ Overheating: Energy bleed (-10). 05537_ Imp. Light Armor Plating destroyed. 05537_ Critical hit (Burn: +37). Map ----- +----------------------------------------------------+ | ???????????????????????????????????? | | ???????????????????????????????????? | | ???????????????????????????????????? | | ???????????????????????????????????? | | ???????????????????????????????????? | | ???????????????????????????????????? | | ???????????????????????????????????? | | ???????????????????????????????????? | | ???????????????????????????????????? | | ???????????????????????????????????? | | ???????????????????????????????????? | | ???????????????????????????????????? | | ???????????????????????????????????? | | ???????????????????????????????????? | | ???????????????????????????????????? | | ???????????????????????????????????? | | ???????????????????????????????????? | | ???????????????????????????????????? | | ???????????????????????????????????? | | ?????????????##????????????????????? | | ???????????? ;##???????????????????? | | ???????????? ! ##??????????????????? | | ????????????=%[ #??????????????????? | | ??????????## #??????????????????? | | ????????### g#???????????????????? | | ????????# @ ;#???????????????????? | | ???????# ###???????????????????? | | ???????# =%##?????????????????????? | | ???????## ;#??????????????????????? | | ????????#####??????????????????????? | | ???????????????????????????????????? | | ???????????????????????????????????? | | ???????????????????????????????????? | | | | | | | | | | | | | | | | | | | | | | | | | | | | | | | | | | | +----------------------------------------------------+ Best States ------------- Heat Dissipation 50 Energy Generation 14 Energy Capacity 280 Matter Stores 300 Matter Capacity 300 Sight Range 16 Terrain Scan Density 10 Armor Coverage 800 Evasion (%) 40 Recoil Reduction 2 Particle Charging 15 Item Schematics ----------------- None Robot Schematics ------------------ None Fabricated ------------ Nothing Repaired ---------- Nothing Studied --------- Lgt. Treads | -9/Materials | Hacked Alien Tech Used ----------------- None Achievements -------------- None Challenges ------------ None Game ------ Seed DerelictWaveRipteeth Manual? 0 Play Time 00:23:03 Cumulative 70.3 hours Start 2026.07.30 @ 17:32:45 End 2026.07.30 @ 17:58:00 Sessions 1 Manual Loads 0 Difficulty Rogue Special Mode None Game No. 286 Rogue 241 Adventurer 45 Explorer 0 Win Type - Total 3 Types 3/0/0/0/0/0/0/0/0/0 Lore% 67 Gallery% 48 Achievement% 46 Wizard Run 0 Options --------- Layout 1 ASCII 0 Keyboard 0 Movement Numpad Keybinds 0 Fullscreen 1 Font 24/Smallcaps Map View 50x35 Zoom Use 0% Tactical HUD 1 Map Filters NONE Filters NONE Steam 1 RUN: 9b4c8ab4-b88c-4a61-9357-28bb35c46cf2